[Event "Chessable Masters - Torneo preliminare"]
[White "Erigaisi, Arjun"]
[Black "Firouzja, Alireza"]
[WhiteFideId "35009192"]
[BlackFideId "12573981"]
[WhiteElo "2685"]
[BlackElo "2745"]
[Result "1-0"]
[Round "6"]
[TimeControl "600+2"]
[Date "2023.03.13"]
[WhiteClock "0:00:12"]
[BlackClock "0:00:07"]

1. d4 {[%clk 0:10:01]}  d5 {[%clk 0:09:52]} 2. Bf4 {[%clk 0:09:59]}  Nf6 {[%clk 0:09:51]} 3. e3 {[%clk 0:10:00]}  e6 {[%clk 0:09:43]} 4. Nf3 {[%clk 0:09:56]}  Bd6 {[%clk 0:09:29]} 5. Bd3 {[%clk 0:09:53]}  O-O {[%clk 0:09:27]} 6. Ne5 {[%clk 0:09:47]}  c5 {[%clk 0:08:41]} 7. c3 {[%clk 0:09:48]}  Qc7 {[%clk 0:08:42]} 8. Nd2 {[%clk 0:09:40]}  Nc6 {[%clk 0:08:29]} 9. Ndf3 {[%clk 0:09:36]}  cxd4 {[%clk 0:08:20]} 10. exd4 {[%clk 0:09:21]}  Ne4 {[%clk 0:08:18]} 11. Bg3 {[%clk 0:09:16]}  f5 {[%clk 0:07:46]} 12. Nxc6 {[%clk 0:08:49]}  Nxg3 {[%clk 0:07:25]} 13. hxg3 {[%clk 0:08:48]}  bxc6 {[%clk 0:07:26]} 14. Qe2 {[%clk 0:08:31]}  h6 {[%clk 0:07:04]} 15. O-O {[%clk 0:08:02]}  c5 {[%clk 0:07:03]} 16. Rfe1 {[%clk 0:08:02]}  Rb8 {[%clk 0:07:00]} 17. Rac1 {[%clk 0:07:52]}  Qb6 {[%clk 0:06:30]} 18. b3 {[%clk 0:07:40]}  Rb7 {[%clk 0:06:21]} 19. Ba6 {[%clk 0:07:03]}  Re7 {[%clk 0:06:17]} 20. Bxc8 {[%clk 0:07:04]}  Rxc8 {[%clk 0:06:18]} 21. Qd3 {[%clk 0:06:52]}  c4 {[%clk 0:05:48]} 22. bxc4 {[%clk 0:06:31]}  Rxc4 {[%clk 0:05:42]} 23. Re2 {[%clk 0:06:03]}  Qc6 {[%clk 0:05:23]} 24. Nd2 {[%clk 0:05:50]}  Ra4 {[%clk 0:05:24]} 25. Nb3 {[%clk 0:05:51]}  Qc4 {[%clk 0:05:08]} 26. Qf3 {[%clk 0:05:50]}  Ra6 {[%clk 0:04:27]} 27. Rce1 {[%clk 0:05:41]}  Ba3 {[%clk 0:04:21]} 28. Re3 {[%clk 0:05:36]}  Qc8 {[%clk 0:04:04]} 29. g4 {[%clk 0:05:23]}  Rf7 {[%clk 0:03:50]} 30. gxf5 {[%clk 0:05:15]}  Rxf5 {[%clk 0:03:50]} 31. Qe2 {[%clk 0:04:55]}  Rf6 {[%clk 0:03:41]} 32. Nd2 {[%clk 0:04:44]}  Bd6 {[%clk 0:03:34]} 33. Nb3 {[%clk 0:04:08]}  Rc6 {[%clk 0:03:10]} 34. Qd3 {[%clk 0:04:00]}  Qa6 {[%clk 0:03:01]} 35. Qc2 {[%clk 0:03:50]}  Qc8 {[%clk 0:02:33]} 36. g3 {[%clk 0:03:48]}  Bb4 {[%clk 0:02:29]} 37. Rc1 {[%clk 0:03:38]}  Ba3 {[%clk 0:02:29]} 38. Rd1 {[%clk 0:03:36]}  Bb4 {[%clk 0:02:22]} 39. Rdd3 {[%clk 0:03:36]}  Rf7 {[%clk 0:02:20]} 40. Nc1 {[%clk 0:03:27]}  Rfc7 {[%clk 0:02:04]} 41. Ne2 {[%clk 0:03:27]}  Bd6 {[%clk 0:02:06]} 42. Rd1 {[%clk 0:03:24]}  Qe8 {[%clk 0:01:57]} 43. Rb1 {[%clk 0:03:25]}  Qf7 {[%clk 0:01:52]} 44. Kg2 {[%clk 0:03:21]}  Rc8 {[%clk 0:01:50]} 45. Rf3 {[%clk 0:03:13]}  Qd7 {[%clk 0:01:46]} 46. Qg6 {[%clk 0:02:52]}  Qe8 {[%clk 0:01:08]} 47. Qd3 {[%clk 0:02:43]}  Rb6 {[%clk 0:01:05]} 48. Rxb6 {[%clk 0:02:35]}  axb6 {[%clk 0:01:07]} 49. Re3 {[%clk 0:02:37]}  Qf7 {[%clk 0:00:59]} 50. Ng1 {[%clk 0:02:32]}  Ra8 {[%clk 0:00:41]} 51. Qe2 {[%clk 0:02:27]}  Re8 {[%clk 0:00:34]} 52. Nf3 {[%clk 0:02:27]}  g5 {[%clk 0:00:32]} 53. Ne5 {[%clk 0:02:13]}  Bxe5 {[%clk 0:00:31]} 54. Rxe5 {[%clk 0:02:15]}  Qf6 {[%clk 0:00:25]} 55. Rxd5 {[%clk 0:02:13]}  Re7 {[%clk 0:00:02]} 56. Rd6 {[%clk 0:02:02]}  Qf5 {[%clk 0:00:03]} 57. Rxb6 {[%clk 0:01:55]}  e5 {[%clk 0:00:04]} 58. Rxh6 {[%clk 0:01:45]}  e4 {[%clk 0:00:05]} 59. Qe3 {[%clk 0:01:08]}  Kg7 {[%clk 0:00:06]} 60. Rh1 {[%clk 0:01:05]}  Kg6 {[%clk 0:00:07]} 61. c4 {[%clk 0:01:02]}  Rc7 {[%clk 0:00:08]} 62. d5 {[%clk 0:01:01]}  Rxc4 {[%clk 0:00:06]} 63. Qb6+ {[%clk 0:00:58]}  Kf7 {[%clk 0:00:07]} 64. Rh6 {[%clk 0:00:27]}  Kg7 {[%clk 0:00:06]} 65. Qa7+ {[%clk 0:00:06]}  Kxh6 {[%clk 0:00:03]} 66. Qa6+ {[%clk 0:00:08]}  Kg7 {[%clk 0:00:02]} 67. Qxc4 {[%clk 0:00:09]}  Qf3+ {[%clk 0:00:04]} 68. Kg1 {[%clk 0:00:10]}  Qd1+ {[%clk 0:00:05]} 69. Qf1 {[%clk 0:00:09]}  Qxd5 {[%clk 0:00:06]} 70. Qa1+ {[%clk 0:00:10]}  Kh6 {[%clk 0:00:04]} 71. a4 {[%clk 0:00:10]}  e3 {[%clk 0:00:06]} 72. Qh8+ {[%clk 0:00:08]}  Kg6 {[%clk 0:00:06]} 73. Qe8+ {[%clk 0:00:10]}  Kh6 {[%clk 0:00:06]} 74. Qf8+ {[%clk 0:00:06]}  Kg6 {[%clk 0:00:06]} 75. Qe8+ {[%clk 0:00:07]}  Kh6 {[%clk 0:00:08]} 76. Qxe3 {[%clk 0:00:08]}  Qd1+ {[%clk 0:00:09]} 77. Kg2 {[%clk 0:00:09]}  Qxa4 {[%clk 0:00:10]} 78. Qe6+ {[%clk 0:00:10]}  Kg7 {[%clk 0:00:11]} 79. Kh3 {[%clk 0:00:10]}  Qd4 {[%clk 0:00:10]} 80. f3 {[%clk 0:00:09]}  Qb4 {[%clk 0:00:07]} 81. Qe5+ {[%clk 0:00:09]}  Kh6 {[%clk 0:00:04]} 82. Qf6+ {[%clk 0:00:10]}  Kh7 {[%clk 0:00:05]} 83. Qxg5 {[%clk 0:00:10]}  Qe1 {[%clk 0:00:06]} 84. Qh4+ {[%clk 0:00:11]}  Kg6 {[%clk 0:00:07]} 85. Qe4+ {[%clk 0:00:12]} 1-0


[Site "Internet"]

[Event "Chessable Masters - Torneo preliminare"]
[White "Yakubboev, Nodirbek"]
[Black "Lazavik, Denis"]
[WhiteFideId "14203987"]
[BlackFideId "13515110"]
[WhiteElo "2577"]
[BlackElo "2488"]
[Result "1/2-1/2"]
[Round "6"]
[TimeControl "600+2"]
[Date "2023.03.13"]
[WhiteClock "0:00:20"]
[BlackClock "0:00:14"]

1. c4 {[%clk 0:09:59]}  Nf6 {[%clk 0:09:59]} 2. Nc3 {[%clk 0:09:59]}  e5 {[%clk 0:10:00]} 3. Nf3 {[%clk 0:10:00]}  Nc6 {[%clk 0:10:00]} 4. e4 {[%clk 0:10:01]}  Bb4 {[%clk 0:09:59]} 5. d3 {[%clk 0:10:03]}  d6 {[%clk 0:10:01]} 6. a3 {[%clk 0:10:04]}  Bc5 {[%clk 0:10:01]} 7. b4 {[%clk 0:10:05]}  Bb6 {[%clk 0:09:59]} 8. Be3 {[%clk 0:10:07]}  Bg4 {[%clk 0:09:35]} 9. Be2 {[%clk 0:10:06]}  Bxf3 {[%clk 0:09:11]} 10. Bxf3 {[%clk 0:10:08]}  Nd4 {[%clk 0:09:13]} 11. Na4 {[%clk 0:10:07]}  Nxf3+ {[%clk 0:09:13]} 12. Qxf3 {[%clk 0:10:09]}  Bxe3 {[%clk 0:09:13]} 13. Qxe3 {[%clk 0:10:09]}  O-O {[%clk 0:09:00]} 14. O-O {[%clk 0:10:09]}  Qd7 {[%clk 0:09:01]} 15. Nc3 {[%clk 0:10:09]}  Ng4 {[%clk 0:08:53]} 16. Qd2 {[%clk 0:09:42]}  f5 {[%clk 0:08:39]} 17. f3 {[%clk 0:09:15]}  Nf6 {[%clk 0:08:37]} 18. exf5 {[%clk 0:09:04]}  Qxf5 {[%clk 0:08:36]} 19. d4 {[%clk 0:09:05]}  a5 {[%clk 0:06:50]} 20. b5 {[%clk 0:08:37]}  Rae8 {[%clk 0:06:38]} 21. Rae1 {[%clk 0:08:31]}  Qf4 {[%clk 0:05:48]} 22. Qxf4 {[%clk 0:08:04]}  exf4 {[%clk 0:05:50]} 23. Kf2 {[%clk 0:07:56]}  Kf7 {[%clk 0:05:49]} 24. Rxe8 {[%clk 0:06:58]}  Rxe8 {[%clk 0:05:49]} 25. Re1 {[%clk 0:06:59]}  Rxe1 {[%clk 0:05:43]} 26. Kxe1 {[%clk 0:07:01]}  Ke6 {[%clk 0:05:44]} 27. Ne2 {[%clk 0:06:14]}  Kf5 {[%clk 0:05:28]} 28. Kd2 {[%clk 0:05:56]}  g5 {[%clk 0:05:24]} 29. Kc3 {[%clk 0:05:15]}  d5 {[%clk 0:04:52]} 30. c5 {[%clk 0:05:02]}  h5 {[%clk 0:04:52]} 31. Nc1 {[%clk 0:04:55]}  g4 {[%clk 0:04:07]} 32. b6 {[%clk 0:03:43]}  cxb6 {[%clk 0:03:23]} 33. cxb6 {[%clk 0:03:45]}  h4 {[%clk 0:02:13]} 34. h3 {[%clk 0:03:41]}  gxh3 {[%clk 0:02:11]} 35. gxh3 {[%clk 0:03:43]}  Nd7 {[%clk 0:01:51]} 36. Nb3 {[%clk 0:03:42]}  a4 {[%clk 0:01:49]} 37. Na5 {[%clk 0:03:14]}  Nxb6 {[%clk 0:01:48]} 38. Kb4 {[%clk 0:03:14]}  Ke6 {[%clk 0:00:41]} 39. Nxb7 {[%clk 0:02:12]}  Nc4 {[%clk 0:00:40]} 40. Nc5+ {[%clk 0:02:13]}  Kf5 {[%clk 0:00:31]} 41. Nd3 {[%clk 0:02:11]}  Nd2 {[%clk 0:00:22]} 42. Ne1 {[%clk 0:02:09]}  Nb3 {[%clk 0:00:17]} 43. Kxa4 {[%clk 0:02:06]}  Nxd4 {[%clk 0:00:18]} 44. Kb4 {[%clk 0:02:07]}  Ke5 {[%clk 0:00:10]} 45. a4 {[%clk 0:01:40]}  Kd6 {[%clk 0:00:11]} 46. Kc3 {[%clk 0:01:24]}  Ne6 {[%clk 0:00:10]} 47. Ng2 {[%clk 0:01:14]}  Ng5 {[%clk 0:00:11]} 48. Nxh4 {[%clk 0:01:13]}  Nxh3 {[%clk 0:00:12]} 49. Kb4 {[%clk 0:00:39]}  Ng5 {[%clk 0:00:08]} 50. Kb5 {[%clk 0:00:40]}  d4 {[%clk 0:00:05]} 51. Kc4 {[%clk 0:00:40]}  Kc6 {[%clk 0:00:06]} 52. Kxd4 {[%clk 0:00:37]}  Kb6 {[%clk 0:00:08]} 53. Kc4 {[%clk 0:00:34]}  Ka5 {[%clk 0:00:09]} 54. Kb3 {[%clk 0:00:35]}  Ka6 {[%clk 0:00:06]} 55. Kb4 {[%clk 0:00:36]}  Kb6 {[%clk 0:00:08]} 56. a5+ {[%clk 0:00:35]}  Ka6 {[%clk 0:00:09]} 57. Ka4 {[%clk 0:00:35]}  Ne6 {[%clk 0:00:05]} 58. Ng6 {[%clk 0:00:25]}  Nc5+ {[%clk 0:00:06]} 59. Kb4 {[%clk 0:00:26]}  Nd3+ {[%clk 0:00:08]} 60. Ka4 {[%clk 0:00:17]}  Nc5+ {[%clk 0:00:09]} 61. Kb4 {[%clk 0:00:19]}  Nd3+ {[%clk 0:00:10]} 62. Kc4 {[%clk 0:00:20]}  Ne1 {[%clk 0:00:12]} 63. Nxf4 {[%clk 0:00:20]}  Kxa5 {[%clk 0:00:12]} 64. Nd3 {[%clk 0:00:20]}  Nxf3 {[%clk 0:00:14]} 1/2-1/2


[Site "Internet"]

[Event "Chessable Masters - Torneo preliminare"]
[White "Salem, A.R. Saleh"]
[Black "Sevian, Samuel"]
[WhiteFideId "9301348"]
[BlackFideId "2040506"]
[WhiteElo "2654"]
[BlackElo "2582"]
[Result "0-1"]
[Round "6"]
[TimeControl "600+2"]
[Date "2023.03.13"]
[WhiteClock "0:00:02"]
[BlackClock "0:01:14"]

1. d4 {[%clk 0:08:27]}  Nf6 {[%clk 0:09:59]} 2. c4 {[%clk 0:08:29]}  e6 {[%clk 0:10:01]} 3. Nf3 {[%clk 0:08:30]}  d5 {[%clk 0:10:01]} 4. g3 {[%clk 0:08:31]}  dxc4 {[%clk 0:08:58]} 5. Bg2 {[%clk 0:08:31]}  c5 {[%clk 0:08:45]} 6. O-O {[%clk 0:08:32]}  Nc6 {[%clk 0:08:46]} 7. Ne5 {[%clk 0:08:31]}  Bd7 {[%clk 0:08:43]} 8. Nxc4 {[%clk 0:08:29]}  cxd4 {[%clk 0:08:44]} 9. Bf4 {[%clk 0:08:29]}  Be7 {[%clk 0:08:46]} 10. Nd6+ {[%clk 0:08:29]}  Kf8 {[%clk 0:08:47]} 11. Nxb7 {[%clk 0:07:04]}  Qb6 {[%clk 0:08:47]} 12. Nd6 {[%clk 0:07:06]}  Qc5 {[%clk 0:08:49]} 13. Nd2 {[%clk 0:05:57]}  Bxd6 {[%clk 0:08:42]} 14. Rc1 {[%clk 0:05:57]}  Qb4 {[%clk 0:08:43]} 15. Bxc6 {[%clk 0:05:25]}  Bxc6 {[%clk 0:08:43]} 16. Rxc6 {[%clk 0:05:26]}  Bxf4 {[%clk 0:08:44]} 17. gxf4 {[%clk 0:05:27]}  Nd5 {[%clk 0:06:49]} 18. Qc2 {[%clk 0:05:28]}  g6 {[%clk 0:06:35]} 19. Nf3 {[%clk 0:05:08]}  Rb8 {[%clk 0:05:53]} 20. Qe4 {[%clk 0:04:53]}  d3 {[%clk 0:05:42]} 21. exd3 {[%clk 0:03:33]}  Qxe4 {[%clk 0:05:20]} 22. dxe4 {[%clk 0:03:35]}  Nxf4 {[%clk 0:05:21]} 23. Rc7 {[%clk 0:03:26]}  Kg7 {[%clk 0:05:08]} 24. Ne5 {[%clk 0:03:17]}  Rhf8 {[%clk 0:04:48]} 25. b3 {[%clk 0:02:03]}  Rb5 {[%clk 0:04:48]} 26. Nd7 {[%clk 0:01:37]}  Rg5+ {[%clk 0:04:24]} 27. Kh1 {[%clk 0:01:38]}  Ra8 {[%clk 0:04:25]} 28. Rg1 {[%clk 0:01:14]}  Ra5 {[%clk 0:03:09]} 29. a4 {[%clk 0:01:14]}  Nh3 {[%clk 0:03:09]} 30. Rf1 {[%clk 0:01:05]}  Nf4 {[%clk 0:02:23]} 31. f3 {[%clk 0:01:06]}  Rg5 {[%clk 0:02:10]} 32. Rg1 {[%clk 0:01:05]}  Rh5 {[%clk 0:02:00]} 33. b4 {[%clk 0:00:46]}  a6 {[%clk 0:02:01]} 34. Rd1 {[%clk 0:00:24]}  Rd8 {[%clk 0:01:54]} 35. Kg1 {[%clk 0:00:14]}  Rg5+ {[%clk 0:01:46]} 36. Kf2 {[%clk 0:00:06]}  e5 {[%clk 0:01:42]} 37. Rd6 {[%clk 0:00:05]}  Rg2+ {[%clk 0:01:40]} 38. Kf1 {[%clk 0:00:07]}  Rxh2 {[%clk 0:01:37]} 39. Rxa6 {[%clk 0:00:06]}  h5 {[%clk 0:01:34]} 40. b5 {[%clk 0:00:04]}  h4 {[%clk 0:01:35]} 41. b6 {[%clk 0:00:04]}  h3 {[%clk 0:01:36]} 42. b7 {[%clk 0:00:05]}  Rg2 {[%clk 0:01:22]} 43. b8=Q {[%clk 0:00:02]}  Rxb8 {[%clk 0:01:14]} 0-1


[Site "Internet"]

[Event "Chessable Masters - Torneo preliminare"]
[White "Aronian, Levon"]
[Black "Le, Tuan Minh"]
[WhiteFideId "13300474"]
[BlackFideId "12401153"]
[WhiteElo "2720"]
[BlackElo "2489"]
[Result "1-0"]
[Round "6"]
[TimeControl "600+2"]
[Date "2023.03.13"]
[WhiteClock "0:01:38"]
[BlackClock "0:00:09"]

1. e4 {[%clk 0:10:01]}  c5 {[%clk 0:10:00]} 2. Nf3 {[%clk 0:10:02]}  Nf6 {[%clk 0:10:02]} 3. e5 {[%clk 0:10:02]}  Nd5 {[%clk 0:10:03]} 4. Nc3 {[%clk 0:10:03]}  Nxc3 {[%clk 0:10:05]} 5. dxc3 {[%clk 0:10:04]}  Nc6 {[%clk 0:10:07]} 6. Bc4 {[%clk 0:09:57]}  e6 {[%clk 0:09:56]} 7. Bf4 {[%clk 0:09:52]}  h6 {[%clk 0:09:56]} 8. Qe2 {[%clk 0:09:38]}  Qc7 {[%clk 0:09:39]} 9. O-O-O {[%clk 0:09:35]}  b6 {[%clk 0:09:35]} 10. Rd2 {[%clk 0:08:59]}  Bb7 {[%clk 0:09:32]} 11. Rhd1 {[%clk 0:08:49]}  O-O-O {[%clk 0:09:32]} 12. Bg3 {[%clk 0:07:56]}  g5 {[%clk 0:08:45]} 13. Ba6 {[%clk 0:07:29]}  g4 {[%clk 0:08:09]} 14. Bxb7+ {[%clk 0:07:29]}  Qxb7 {[%clk 0:07:54]} 15. Ne1 {[%clk 0:07:09]}  h5 {[%clk 0:07:48]} 16. Bf4 {[%clk 0:06:55]}  Rg8 {[%clk 0:06:55]} 17. g3 {[%clk 0:06:31]}  Ne7 {[%clk 0:05:57]} 18. c4 {[%clk 0:06:24]}  Nc6 {[%clk 0:05:28]} 19. c3 {[%clk 0:06:24]}  Be7 {[%clk 0:05:29]} 20. Kb1 {[%clk 0:05:48]}  Bg5 {[%clk 0:05:17]} 21. Qe3 {[%clk 0:05:21]}  Bxf4 {[%clk 0:04:46]} 22. Qxf4 {[%clk 0:05:23]}  Qc7 {[%clk 0:04:46]} 23. Rd6 {[%clk 0:05:09]}  Rgf8 {[%clk 0:03:37]} 24. Qe4 {[%clk 0:04:35]}  f6 {[%clk 0:03:15]} 25. exf6 {[%clk 0:04:35]}  Rxf6 {[%clk 0:03:17]} 26. f4 {[%clk 0:04:36]}  gxf3 {[%clk 0:02:39]} 27. Nxf3 {[%clk 0:04:36]}  Qb7 {[%clk 0:02:38]} 28. Ng5 {[%clk 0:04:26]}  Na5 {[%clk 0:02:22]} 29. Qe2 {[%clk 0:04:19]}  Rf5 {[%clk 0:01:31]} 30. Nxe6 {[%clk 0:04:03]}  Re8 {[%clk 0:01:22]} 31. Qd3 {[%clk 0:04:03]}  Rf7 {[%clk 0:00:54]} 32. Nf4 {[%clk 0:03:50]}  h4 {[%clk 0:00:50]} 33. Nd5 {[%clk 0:03:27]}  hxg3 {[%clk 0:00:51]} 34. hxg3 {[%clk 0:03:27]}  Re6 {[%clk 0:00:43]} 35. Nxb6+ {[%clk 0:03:17]}  Qxb6 {[%clk 0:00:10]} 36. Rxb6 {[%clk 0:03:17]}  axb6 {[%clk 0:00:11]} 37. b3 {[%clk 0:02:51]}  Nc6 {[%clk 0:00:12]} 38. Kb2 {[%clk 0:02:43]}  Rfe7 {[%clk 0:00:07]} 39. Rd2 {[%clk 0:02:36]}  Re3 {[%clk 0:00:08]} 40. Qg6 {[%clk 0:02:36]}  R3e6 {[%clk 0:00:10]} 41. Qg8+ {[%clk 0:02:29]}  Re8 {[%clk 0:00:11]} 42. Qg5 {[%clk 0:02:27]}  Ne5 {[%clk 0:00:09]} 43. Qf4 {[%clk 0:02:23]}  Rg8 {[%clk 0:00:07]} 44. a4 {[%clk 0:02:15]}  Nc6 {[%clk 0:00:07]} 45. g4 {[%clk 0:02:11]}  Reg6 {[%clk 0:00:08]} 46. Qf5 {[%clk 0:02:03]}  R6g7 {[%clk 0:00:03]} 47. g5 {[%clk 0:02:03]}  Kc7 {[%clk 0:00:04]} 48. Qf4+ {[%clk 0:01:59]}  Kc8 {[%clk 0:00:05]} 49. Qd6 {[%clk 0:01:53]}  Re7 {[%clk 0:00:06]} 50. a5 {[%clk 0:01:46]}  bxa5 {[%clk 0:00:07]} 51. Qxc5 {[%clk 0:01:47]}  Re5 {[%clk 0:00:07]} 52. Qd6 {[%clk 0:01:39]}  Rg7 {[%clk 0:00:09]} 53. Qf8+ {[%clk 0:01:38]} 1-0


[Site "Internet"]

[Event "Chessable Masters - Torneo preliminare"]
[White "Giri, Anish"]
[Black "Praggnanandhaa, R"]
[WhiteFideId "24116068"]
[BlackFideId "25059530"]
[WhiteElo "2714"]
[BlackElo "2587"]
[Result "0-1"]
[Round "6"]
[TimeControl "600+2"]
[Date "2023.03.13"]
[WhiteClock "0:00:10"]
[BlackClock "0:00:11"]

1. e4 {[%clk 0:09:50]}  e5 {[%clk 0:09:58]} 2. Nf3 {[%clk 0:09:52]}  Nc6 {[%clk 0:09:59]} 3. Bb5 {[%clk 0:09:51]}  a6 {[%clk 0:09:59]} 4. Ba4 {[%clk 0:09:53]}  Bc5 {[%clk 0:09:59]} 5. c3 {[%clk 0:09:51]}  Nge7 {[%clk 0:09:59]} 6. d4 {[%clk 0:09:53]}  exd4 {[%clk 0:10:00]} 7. cxd4 {[%clk 0:09:55]}  Bb4+ {[%clk 0:10:01]} 8. Bd2 {[%clk 0:09:56]}  Bxd2+ {[%clk 0:10:02]} 9. Qxd2 {[%clk 0:09:53]}  d5 {[%clk 0:10:03]} 10. exd5 {[%clk 0:09:54]}  Qxd5 {[%clk 0:10:04]} 11. O-O {[%clk 0:09:43]}  O-O {[%clk 0:10:01]} 12. Nc3 {[%clk 0:09:41]}  Qd6 {[%clk 0:10:02]} 13. Ne4 {[%clk 0:09:30]}  Qb4 {[%clk 0:09:39]} 14. Qxb4 {[%clk 0:08:45]}  Nxb4 {[%clk 0:09:38]} 15. a3 {[%clk 0:08:45]}  Nbd5 {[%clk 0:09:32]} 16. Rac1 {[%clk 0:08:46]}  Rd8 {[%clk 0:09:24]} 17. Rfe1 {[%clk 0:08:41]}  c6 {[%clk 0:09:17]} 18. h3 {[%clk 0:08:39]}  Kf8 {[%clk 0:09:09]} 19. Nc5 {[%clk 0:08:32]}  a5 {[%clk 0:08:37]} 20. Kh2 {[%clk 0:08:20]}  Ra7 {[%clk 0:07:28]} 21. Bc2 {[%clk 0:07:43]}  Bf5 {[%clk 0:06:38]} 22. Ne5 {[%clk 0:07:42]}  Bxc2 {[%clk 0:06:27]} 23. Rxc2 {[%clk 0:07:44]}  Nf6 {[%clk 0:06:20]} 24. Rce2 {[%clk 0:07:37]}  b6 {[%clk 0:05:54]} 25. Na4 {[%clk 0:07:26]}  b5 {[%clk 0:05:07]} 26. Nc3 {[%clk 0:06:24]}  Rb7 {[%clk 0:04:15]} 27. Ne4 {[%clk 0:05:36]}  Nxe4 {[%clk 0:04:08]} 28. Rxe4 {[%clk 0:05:36]}  f5 {[%clk 0:03:58]} 29. Rh4 {[%clk 0:04:54]}  h6 {[%clk 0:03:57]} 30. Nd3 {[%clk 0:04:52]}  Kf7 {[%clk 0:03:09]} 31. Nc5 {[%clk 0:02:58]}  Ra7 {[%clk 0:03:06]} 32. Rd1 {[%clk 0:02:53]}  Nd5 {[%clk 0:02:22]} 33. g4 {[%clk 0:02:52]}  fxg4 {[%clk 0:02:08]} 34. Rxg4 {[%clk 0:02:51]}  Rd6 {[%clk 0:01:56]} 35. Nd3 {[%clk 0:02:42]}  Nf6 {[%clk 0:01:50]} 36. Rf4 {[%clk 0:02:40]}  Re7 {[%clk 0:01:48]} 37. Rc1 {[%clk 0:02:31]}  Re2 {[%clk 0:01:34]} 38. Ne5+ {[%clk 0:02:21]}  Kg8 {[%clk 0:01:12]} 39. Nxc6 {[%clk 0:02:05]}  a4 {[%clk 0:01:12]} 40. Ne5 {[%clk 0:01:29]}  Rd8 {[%clk 0:01:11]} 41. Nc6 {[%clk 0:00:25]}  Rde8 {[%clk 0:00:46]} 42. Rc5 {[%clk 0:00:15]}  Rxb2 {[%clk 0:00:40]} 43. Re5 {[%clk 0:00:14]}  Kf7 {[%clk 0:00:16]} 44. d5 {[%clk 0:00:13]}  Rxe5 {[%clk 0:00:14]} 45. Nxe5+ {[%clk 0:00:15]}  Ke7 {[%clk 0:00:16]} 46. Rd4 {[%clk 0:00:11]}  Kd6 {[%clk 0:00:14]} 47. Nf7+ {[%clk 0:00:09]}  Kc5 {[%clk 0:00:15]} 48. Rd1 {[%clk 0:00:10]}  Nxd5 {[%clk 0:00:13]} 49. Rc1+ {[%clk 0:00:11]}  Kb6 {[%clk 0:00:15]} 50. Ne5 {[%clk 0:00:07]}  Rxf2+ {[%clk 0:00:14]} 51. Kg3 {[%clk 0:00:09]}  Ra2 {[%clk 0:00:14]} 52. Rc6+ {[%clk 0:00:09]}  Kb7 {[%clk 0:00:10]} 53. Rd6 {[%clk 0:00:10]}  Rxa3+ {[%clk 0:00:10]} 54. Kg4 {[%clk 0:00:11]}  Nc7 {[%clk 0:00:10]} 55. Nd3 {[%clk 0:00:10]}  Rc3 {[%clk 0:00:11]} 0-1


[Site "Internet"]

[Event "Chessable Masters - Torneo preliminare"]
[White "Dreev, Aleksey"]
[Black "Michalik, Peter"]
[WhiteFideId "4100107"]
[BlackFideId "14907526"]
[WhiteElo "2557"]
[BlackElo "2526"]
[Result "1/2-1/2"]
[Round "6"]
[TimeControl "600+2"]
[Date "2023.03.13"]
[WhiteClock "0:09:57"]
[BlackClock "0:09:41"]

1. d4 {[%clk 0:10:01]}  Nf6 {[%clk 0:09:55]} 2. c4 {[%clk 0:10:01]}  e6 {[%clk 0:09:56]} 3. Nc3 {[%clk 0:10:02]}  Bb4 {[%clk 0:09:56]} 4. Qc2 {[%clk 0:10:03]}  O-O {[%clk 0:09:54]} 5. a3 {[%clk 0:10:03]}  Bxc3+ {[%clk 0:09:55]} 6. Qxc3 {[%clk 0:10:05]}  d5 {[%clk 0:09:56]} 7. Nf3 {[%clk 0:10:05]}  dxc4 {[%clk 0:09:56]} 8. Qxc4 {[%clk 0:10:06]}  b6 {[%clk 0:09:58]} 9. Bg5 {[%clk 0:10:05]}  Ba6 {[%clk 0:09:56]} 10. Qa4 {[%clk 0:10:06]}  Qd7 {[%clk 0:09:42]} 11. Qxd7 {[%clk 0:10:05]}  Nbxd7 {[%clk 0:09:42]} 12. Bxf6 {[%clk 0:10:00]}  gxf6 {[%clk 0:09:41]} 13. e3 {[%clk 0:09:57]} 1/2-1/2


[Site "Internet"]

[Event "Chessable Masters - Torneo preliminare"]
[White "Gukesh, D"]
[Black "Meier, Georg"]
[WhiteFideId "46616543"]
[BlackFideId "4675789"]
[WhiteElo "2629"]
[BlackElo "2624"]
[Result "1-0"]
[Round "6"]
[TimeControl "600+2"]
[Date "2023.03.13"]
[WhiteClock "0:00:18"]
[BlackClock "0:00:06"]

1. d4 {[%clk 0:10:01]}  e6 {[%clk 0:10:01]} 2. c4 {[%clk 0:10:01]}  b6 {[%clk 0:10:02]} 3. Nc3 {[%clk 0:09:53]}  Bb4 {[%clk 0:10:00]} 4. Nf3 {[%clk 0:09:40]}  Bb7 {[%clk 0:09:57]} 5. Bg5 {[%clk 0:09:38]}  Nf6 {[%clk 0:09:37]} 6. Nd2 {[%clk 0:09:31]}  h6 {[%clk 0:08:43]} 7. Bh4 {[%clk 0:09:32]}  Nc6 {[%clk 0:08:42]} 8. e3 {[%clk 0:09:28]}  Ne7 {[%clk 0:08:07]} 9. Bd3 {[%clk 0:09:21]}  Nf5 {[%clk 0:07:15]} 10. Bxf5 {[%clk 0:09:04]}  exf5 {[%clk 0:07:17]} 11. Qc2 {[%clk 0:08:46]}  Bxc3 {[%clk 0:04:46]} 12. Qxc3 {[%clk 0:07:20]}  g5 {[%clk 0:04:45]} 13. Bg3 {[%clk 0:07:21]}  Bxg2 {[%clk 0:04:46]} 14. Rg1 {[%clk 0:07:19]}  Ne4 {[%clk 0:04:47]} 15. Nxe4 {[%clk 0:06:33]}  Bxe4 {[%clk 0:04:46]} 16. d5 {[%clk 0:06:34]}  f6 {[%clk 0:03:46]} 17. O-O-O {[%clk 0:06:35]}  d6 {[%clk 0:03:25]} 18. b3 {[%clk 0:04:30]}  Kf7 {[%clk 0:03:21]} 19. Kb2 {[%clk 0:04:31]}  Qd7 {[%clk 0:02:51]} 20. a3 {[%clk 0:04:26]}  Rhe8 {[%clk 0:02:40]} 21. Rd4 {[%clk 0:04:20]}  a5 {[%clk 0:02:29]} 22. Rf1 {[%clk 0:04:17]}  Bf3 {[%clk 0:02:29]} 23. Ka1 {[%clk 0:04:03]}  Re4 {[%clk 0:02:24]} 24. h4 {[%clk 0:03:37]}  Kg6 {[%clk 0:02:05]} 25. Bh2 {[%clk 0:03:30]}  Rae8 {[%clk 0:02:00]} 26. Rg1 {[%clk 0:03:30]}  Rxd4 {[%clk 0:01:34]} 27. exd4 {[%clk 0:03:31]}  Be2 {[%clk 0:01:30]} 28. f3 {[%clk 0:02:58]}  Qe7 {[%clk 0:00:30]} 29. Bf4 {[%clk 0:02:59]}  Qf7 {[%clk 0:00:09]} 30. Qd2 {[%clk 0:02:34]}  Qe7 {[%clk 0:00:08]} 31. Qc3 {[%clk 0:02:17]}  Kf7 {[%clk 0:00:07]} 32. Bc1 {[%clk 0:02:17]}  Qd7 {[%clk 0:00:03]} 33. a4 {[%clk 0:02:08]}  Re7 {[%clk 0:00:02]} 34. hxg5 {[%clk 0:02:02]}  hxg5 {[%clk 0:00:03]} 35. Rh1 {[%clk 0:02:03]}  Kg6 {[%clk 0:00:04]} 36. Rh2 {[%clk 0:01:42]}  Qe8 {[%clk 0:00:03]} 37. Rf2 {[%clk 0:01:38]}  Kg7 {[%clk 0:00:03]} 38. Qc2 {[%clk 0:01:31]}  Kg6 {[%clk 0:00:04]} 39. Kb2 {[%clk 0:01:21]}  Kg7 {[%clk 0:00:05]} 40. Ka3 {[%clk 0:00:47]}  f4 {[%clk 0:00:05]} 41. Rh2 {[%clk 0:00:47]}  Qg6 {[%clk 0:00:06]} 42. Rxe2 {[%clk 0:00:48]}  Qxc2 {[%clk 0:00:07]} 43. Rxc2 {[%clk 0:00:49]}  Re1 {[%clk 0:00:07]} 44. c5 {[%clk 0:00:46]}  Rf1 {[%clk 0:00:06]} 45. cxd6 {[%clk 0:00:44]}  cxd6 {[%clk 0:00:08]} 46. Rc3 {[%clk 0:00:45]}  f5 {[%clk 0:00:08]} 47. b4 {[%clk 0:00:45]}  g4 {[%clk 0:00:07]} 48. Bxf4 {[%clk 0:00:46]}  axb4+ {[%clk 0:00:05]} 49. Kxb4 {[%clk 0:00:47]}  Kg6 {[%clk 0:00:06]} 50. Bxd6 {[%clk 0:00:45]}  gxf3 {[%clk 0:00:07]} 51. Rb3 {[%clk 0:00:24]}  Kg5 {[%clk 0:00:06]} 52. Kb5 {[%clk 0:00:22]}  Kg4 {[%clk 0:00:07]} 53. Be7 {[%clk 0:00:13]}  f2 {[%clk 0:00:06]} 54. Rb2 {[%clk 0:00:15]}  Kg3 {[%clk 0:00:04]} 55. d6 {[%clk 0:00:16]}  Rd1 {[%clk 0:00:04]} 56. Rxf2 {[%clk 0:00:13]}  Kxf2 {[%clk 0:00:05]} 57. d7 {[%clk 0:00:15]}  Rxd4 {[%clk 0:00:05]} 58. d8=Q {[%clk 0:00:16]}  Rxd8 {[%clk 0:00:06]} 59. Bxd8 {[%clk 0:00:18]} 1-0


[Site "Internet"]